bitfinex/quotes_SOLUSD_20220208
["timestamp","ask_amount","ask_price","bid_price","bid_amount"]
[1644318881752,13.1668,114.0,113.91,0.024]
[1644318882758,13.1668,114.0,113.89,57.1322]
[1644318883152,13.1668,114.0,113.89,51.1322]
[1644318883354,13.1668,114.0,113.89,57.1322]
[1644318883554,13.1668,114.0,113.89,51.1322]
[1644318885759,13.1668,114.0,113.89,54.3959837]
[1644318886158,13.1668,114.0,113.89,52.37175675]
[1644318886359,13.1668,114.0,113.89,39.20625675]
[1644318886559,13.1668,114.0,113.89,37.9667]
[1644318886759,13.1668,114.0,113.89,37.9907]
[1644318888566,13.1668,114.0,113.89,39.23025675]
[1644318888768,17.5548,114.0,113.89,37.9907]
[1644318888963,13.1668,114.0,113.89,37.9907]
[1644318889565,15.27455549,114.0,113.89,37.9907]
[1644318891263,13.1668,114.0,113.89,37.9907]
[1644318892167,13.1668,114.0,113.89,39.23025675]
[1644318892365,15.27455549,114.0,113.89,39.23025675]
[1644318892564,13.1668,114.0,113.89,37.9907]
[1644318892763,13.1668,114.0,113.89,39.23025675]
[1644318893571,13.1668,114.0,113.89,45.23025675]
[1644318893767,13.1668,114.0,113.89,37.9907]
[1644318893970,13.1668,114.0,113.89,39.23025675]
[1644318894766,12.1668,114.0,113.89,39.23025675]
[1644318895267,12.1668,114.0,113.89,26.51025675]
[1644318898268,12.1668,114.0,113.9,1.23955675]
[1644318898468,12.1668,114.0,113.9,1.26355675]
[1644318898669,12.1668,114.0,113.9,1.51355675]
[1644318900074,24.8868,114.0,113.9,0.274]
[1644318900273,24.8868,114.0,113.9,0.024]
[1644318900474,4.386,113.99,113.89,26.51025675]
[1644318900677,13.1705,113.96,113.9,0.024]
[1644318900875,22.7475,113.96,113.9,0.024]
[1644318901075,22.7475,113.96,113.89,25.2467]
[1644318901976,13.1705,113.96,113.89,24.9967]
[1644318902981,25.8905,113.96,113.89,24.9967]
[1644318904181,25.8905,113.96,113.89,25.2467]
[1644318904681,13.1684,113.98,113.89,25.2467]
[1644318904883,13.1684,113.98,113.89,35.0787]
[1644318905102,13.1684,113.98,113.89,36.31825675]
[1644318906184,13.1684,113.98,113.9,1.23955675]
[1644318906590,13.1684,113.98,113.9,1.48955675]
[1644318908291,13.1659,114.0,113.9,9.5137837]
[1644318908590,13.1659,114.0,113.91,23.84955675]
[1644318908789,13.1659,114.0,113.91,24.09955675]
[1644318908993,13.1659,114.0,113.91,30.09955675]
[1644318909691,13.1659,114.0,113.91,43.26365675]
[1644318909893,13.1659,114.0,113.91,45.2878837]
[1644318910095,13.1659,114.0,113.92,1.23955675]
[1644318910293,13.1659,114.0,113.92,1.48955675]
[1644318911293,13.1659,114.0,113.92,0.25]
[1644318911494,13.1659,114.0,113.92,14.65355675]
[1644318911896,13.1635,114.02,113.92,13.414]
[1644318912097,1.25032313,114.03,113.93,23.2466]
[1644318912297,1.25032313,114.04,113.93,23.4966]
[1644318912496,1.25032313,114.05,113.94,16.4486837]
[1644318912708,1.25032313,114.05,113.95,25.88585675]
[1644318912908,13.1587,114.06,113.95,27.9100837]
[1644318913110,1.25032313,114.07,113.96,2.04822695]
[1644318913309,1.25032313,114.08,113.96,16.2577837]
[1644318913509,1.25032313,114.09,113.97,32.1209837]
[1644318913708,1.25032313,114.1,113.98,13.95955675]
[1644318913914,14.40352313,114.1,113.99,68.3119]
[1644318914112,1.25032313,114.09,113.99,74.3119]
[1644318914314,1.25032313,114.09,113.99,74.5619]
[1644318914713,2.10775549,114.12,113.99,74.5619]
[1644318914714,1.25032313,114.1,113.99,74.5619]
[1644318915009,14.40332313,114.11,114.01,13.1519]
[1644318915209,14.40332313,114.11,114.02,23.8261]
[1644318915609,14.40332313,114.11,114.02,39.7861]
[1644318916310,13.153,114.11,114.02,39.7861]
[1644318916715,13.153,114.11,114.02,52.9386]
[1644318916915,13.153,114.11,114.02,43.2286]
[1644318919412,13.153,114.11,114.02,45.25282695]
[1644318920013,13.153,114.11,114.02,43.2286]
[1644318923015,2.5619782,114.13,114.06,13.1464]
[1644318923216,2.5619782,114.13,114.06,36.2094]
[1644318923416,4.382,114.19,114.07,2.02422695]
[1644318923417,0.02878168,114.19,114.07,2.02422695]
[1644318923615,4.41078168,114.21,114.07,20.74422695]
[1644318923815,0.02878168,114.21,114.07,18.97]
[1644318924015,0.02878168,114.21,114.08,24.8593]
[1644318924215,4.38,114.2,114.08,31.1093]
[1644318924415,0.02878168,114.19,114.08,31.1093]
[1644318924619,13.17288168,114.19,114.08,25.1093]
[1644318927623,25.89288168,114.19,114.08,25.1093]
[1644318928421,2.10775549,114.18,114.04,24.5563]
[1644318928621,13.1522,114.14,114.0,4.381]
[1644318928822,87.453,114.14,114.02,2.02422695]
[1644318929022,91.835,114.14,114.02,2.02422695]
[1644318929223,89.56075549,114.14,114.02,2.02422695]
[1644318929423,87.453,114.14,114.02,2.02422695]
[1644318930027,87.453,114.14,114.02,2.27422695]
[1644318930325,87.453,114.14,114.02,26.93832695]
[1644318930722,89.56075549,114.14,114.02,26.68832695]
[1644318930922,93.94275549,114.14,114.02,26.68832695]
[1644318931224,93.94275549,114.14,114.02,32.68832695]
[1644318932122,93.94275549,114.14,114.02,32.93832695]
[1644318933223,89.56075549,114.14,114.02,32.93832695]
[1644318934926,77.21975549,114.14,114.02,32.93832695]
[1644318935126,75.112,114.14,114.02,32.93832695]
[1644318935330,62.392,114.14,114.02,32.93832695]
[1644318935529,13.1522,114.14,114.03,40.8102]
[1644318935728,13.1522,114.14,114.03,41.0602]
[1644318935927,13.1522,114.14,114.04,2.02422695]
[1644318936126,13.1522,114.14,114.04,20.74422695]
[1644318936325,13.1522,114.14,114.04,20.99422695]
[1644318936525,13.1522,114.14,114.05,2.02422695]
[1644318936726,13.1522,114.14,114.05,15.42212695]
[1644318936927,13.1522,114.14,114.05,21.42212695]
[1644318937128,13.1522,114.14,114.06,2.02422695]
[1644318937328,13.1522,114.14,114.06,2.27422695]
[1644318937530,13.1473,114.16,114.06,8.27422695]
[1644318937730,13.1473,114.16,114.06,55.99852695]
[1644318938032,13.1473,114.16,114.06,69.14542695]
[1644318939428,13.1473,114.16,114.06,67.1212]
[1644318940028,13.1473,114.16,114.06,61.1212]
[1644318941434,13.1473,114.16,114.06,63.14542695]
[1644318941628,13.1473,114.16,114.06,69.14542695]
[1644318943630,13.17608168,114.16,114.06,69.14542695]
[1644318943931,13.17608168,114.16,114.06,68.89542695]
[1644318944133,14.42640481,114.16,114.06,66.8712]
[1644318944330,14.39762313,114.16,114.06,66.8712]
[1644318945330,14.39762313,114.16,114.06,53.9743]
[1644318945531,1.25032313,114.15,114.06,53.9743]
[1644318945734,13.1491,114.14,114.06,53.7243]
[1644318945931,13.1491,114.14,114.06,47.7243]
[1644318947130,13.1491,114.14,114.06,47.9743]
[1644318948934,13.1491,114.14,114.06,53.9743]
[1644318949737,13.1491,114.14,114.06,67.1222]
[1644318951634,13.1491,114.14,114.07,2.02422695]
[1644318951836,13.1491,114.14,114.07,2.27422695]
[1644318952236,13.1491,114.14,114.07,0.25]
[1644318952938,13.1491,114.14,114.06,67.1222]
[1644318953137,13.1491,114.14,114.06,61.1222]
[1644318953636,13.1491,114.14,114.06,67.1222]
[1644318954138,13.1491,114.14,114.06,63.14642695]
[1644318954341,13.1491,114.14,114.06,69.14642695]
[1644318954739,14.39942313,114.14,114.06,69.14642695]
[1644318955540,14.39942313,114.14,114.06,63.14642695]
[1644318955747,13.1491,114.14,114.06,63.14642695]
[1644318956140,13.1491,114.14,114.06,69.14642695]
[1644318956740,14.39942313,114.14,114.06,69.14642695]
[1644318957941,14.39942313,114.14,114.06,49.99852695]
[1644318961450,1.25032313,114.13,114.06,49.99852695]
[1644318961652,13.1499,114.12,114.06,49.99852695]
[1644318961850,13.1499,114.12,114.06,55.99852695]
[1644318962050,13.1499,114.12,114.06,49.99852695]
[1644318962551,13.1499,114.12,114.06,55.99852695]
[1644318962855,13.1499,114.12,114.06,49.99852695]
[1644318964855,13.1499,114.12,114.06,2.02422695]
[1644318965154,1.25032313,114.11,114.02,27.1852]
[1644318965354,13.1541,114.09,114.02,22.8032]
[1644318965555,13.1541,114.09,114.02,28.8032]
[1644318965754,13.1541,114.09,114.02,22.8032]
[1644318966856,13.1541,114.09,114.02,36.2064]
[1644318967054,13.1541,114.09,114.02,42.2064]
[1644318967253,13.1541,114.09,114.02,36.2064]
[1644318967454,13.1541,114.09,114.02,38.23062695]
[1644318967653,13.1541,114.09,114.02,25.07742695]
[1644318967855,13.1541,114.09,114.0,38.04925675]
[1644318968056,13.1541,114.09,114.0,37.0597]
[1644318968255,13.1541,114.09,114.0,39.08392695]
[1644318968972,13.1541,114.09,114.0,38.83392695]
[1644318969172,25.5491,114.09,114.0,23.654]
[1644318969376,39.51942313,114.09,114.0,23.654]
[1644318969770,27.12442313,114.09,114.0,23.654]
[1644318969970,25.8741,114.09,114.0,23.654]
[1644318970172,25.8741,114.09,114.0,31.67822695]
[1644318970371,13.1541,114.09,114.02,13.1535]
[1644318970771,13.1541,114.09,114.02,13.4035]
[1644318971473,13.1541,114.09,114.02,15.42772695]
[1644318974573,13.1541,114.09,114.02,21.42772695]
[1644318974775,13.1519,114.1,114.02,21.42772695]
[1644318974973,13.1519,114.1,114.03,24.1744]
[1644318975173,22.8359,114.11,114.04,13.1508]
[1644318975374,22.8359,114.11,114.04,15.17502695]
[1644318975578,22.8359,114.11,114.04,2.27422695]
[1644318975774,22.8359,114.11,114.04,0.25]
[1644318976777,35.9867,114.11,114.03,37.5767]
[1644318976975,35.9867,114.11,114.04,2.02422695]
[1644318977376,35.9867,114.11,114.04,2.27422695]
[1644318977576,35.9867,114.11,114.04,0.25]
[1644318978181,35.9867,114.11,114.04,2.27422695]
[1644318978581,35.9867,114.11,114.04,0.25]
[1644318978779,35.9867,114.11,114.04,13.1511]
[1644318978979,35.9867,114.11,114.04,13.4011]
[1644318981382,13.1508,114.11,114.04,13.4011]
[1644318985788,1.27910481,114.13,114.04,26.84232695]
[1644318985988,1.25032313,114.13,114.07,13.1477]
[1644318986195,1.25032313,114.14,114.07,22.4367]
[1644318986390,0.02878168,114.15,114.07,22.4367]
[1644318986391,1.27910481,114.15,114.08,25.48202695]
[1644318986590,1.25032313,114.15,114.08,31.48202695]
[1644318986787,1.25032313,114.16,114.09,2.02422695]
[1644318986989,1.27910481,114.18,114.09,2.02422695]
[1644318987189,1.27910481,114.18,114.09,21.41832695]
[1644318987390,1.25032313,114.18,114.1,24.2209]
[1644318987589,1.27910481,114.19,114.1,42.96812695]
[1644318987790,1.25032313,114.19,114.1,43.21812695]
[1644318988392,14.39242313,114.19,114.12,13.1416]
[1644318988593,13.1421,114.19,114.12,13.1416]
[1644318988900,13.1421,114.19,114.12,13.3916]
[1644318989595,13.1421,114.19,114.12,19.3916]
[1644318989992,13.1421,114.19,114.12,13.3916]
[1644318990396,13.1421,114.19,114.12,19.3916]
[1644318991501,13.1421,114.19,114.12,13.3916]
[1644318991697,13.1421,114.19,114.12,6.25]
[1644318991897,13.1421,114.19,114.12,6.0]
[1644318992097,13.1421,114.19,114.11,13.1429]
[1644318992596,13.1421,114.19,114.11,19.1429]
[1644318992796,13.1421,114.19,114.11,21.16712695]
[1644318993198,13.1421,114.19,114.11,13.3929]
[1644318993397,13.1421,114.19,114.11,19.3929]
[1644318993899,13.1421,114.19,114.11,13.3929]
[1644318994103,13.1412,114.2,114.11,13.3929]
[1644318994500,13.1412,114.2,114.11,19.3929]
[1644318994701,13.1412,114.2,114.12,24.0616]
[1644318994901,13.1412,114.2,114.12,37.203]
[1644318995125,13.1412,114.2,114.12,37.453]
[1644318996410,13.1412,114.2,114.12,43.453]
[1644318996613,13.1412,114.2,114.12,37.453]
[1644318996810,13.1412,114.2,114.12,24.3116]
[1644318997208,13.1412,114.2,114.1,23.9439]
[1644318997409,14.39152313,114.2,114.11,0.25]
[1644318997810,14.39152313,114.2,114.1,24.1939]
[1644318998009,14.39152313,114.2,114.1,37.3381]
[1644318998611,14.39152313,114.2,114.1,47.4102]
[1644318998812,13.1477,114.16,114.06,12.72]
[1644318999010,13.1477,114.16,114.06,23.4663]
[1644318999409,13.17648168,114.16,114.06,23.4663]
[1644318999711,13.17648168,114.16,114.06,36.614]
[1644319000514,13.17648168,114.16,114.06,23.4663]
[1644319000912,37.24508168,114.16,114.06,23.4663]
[1644319001113,37.24508168,114.16,114.06,23.7163]
[1644319002736,37.24508168,114.16,114.06,36.8649]
[1644319004137,24.09738168,114.16,114.06,83.664045]
[1644319004339,0.02878168,114.16,114.06,83.664045]
[1644319004536,13.1444,114.17,114.06,83.664045]
[1644319004739,0.02878168,114.16,114.07,2.02422179]
[1644319004938,13.17318168,114.17,114.09,13.1444]
[1644319005238,13.1444,114.17,114.09,13.3944]
[1644319005440,13.1444,114.17,114.09,15.41862179]
[1644319006138,13.1444,114.17,114.09,21.41862179]
[1644319006339,13.1444,114.17,114.09,19.3944]
[1644319007538,13.1444,114.17,114.09,13.3944]
[1644319008139,13.1444,114.17,114.09,19.3944]
[1644319008539,13.1444,114.17,114.09,13.3944]
[1644319008939,13.1444,114.17,114.09,19.3944]
[1644319009340,13.1444,114.17,114.09,19.1444]
[1644319009543,13.1444,114.17,114.09,13.1444]
[1644319010742,13.1444,114.17,114.09,15.41862179]
[1644319011243,13.1444,114.17,114.09,2.27422179]
[1644319011443,14.39472313,114.17,114.08,37.3298]
[1644319011648,39.49272313,114.17,114.05,2.02422179]
[1644319011847,24.88772313,114.16,114.05,26.74932179]
[1644319012046,13.1477,114.14,114.05,32.74932179]
[1644319012246,23.66618168,114.16,114.05,32.74932179]
[1644319012747,23.66618168,114.16,114.05,32.99932179]
[1644319013847,13.1468,114.15,114.05,58.86922179]
[1644319014047,13.1468,114.15,114.05,63.25122179]
[1644319014249,0.02878168,114.16,114.05,77.73365089]
[1644319014448,0.02878168,114.16,114.05,91.33036679]
[1644319015051,0.02878168,114.16,114.05,92.56992354]
[1644319015349,1.25032313,114.18,114.05,92.56992354]
[1644319015548,0.02878168,114.15,114.05,92.56992354]
[1644319015748,13.17398168,114.17,114.05,92.56992354]
[1644319015949,0.02878168,114.16,114.05,88.18792354]
[1644319017050,0.02878168,114.16,114.05,82.18792354]
[1644319018353,0.02878168,114.16,114.05,101.12062354]
[1644319019554,0.02878168,114.16,114.06,1.23955675]
[1644319019754,0.02878168,114.17,114.09,13.1432]
[1644319019952,0.02878168,114.16,114.09,13.1432]
[1644319020254,0.02878168,114.16,114.1,2.02422179]
[1644319020453,50.44697718,114.21,114.1,2.02422179]
[1644319020454,1.27910481,114.19,114.1,2.02422179]
[1644319020654,1.25032313,114.19,114.1,8.27422179]
[1644319021054,1.25032313,114.19,114.11,23.4646]
[1644319021255,1.25032313,114.19,114.11,23.7146]
[1644319021461,1.25032313,114.19,114.11,29.7146]
[1644319021856,1.25032313,114.19,114.12,13.141]
[1644319022358,1.25032313,114.19,114.12,13.391]
[1644319023056,14.39242313,114.19,114.12,15.41522179]
[1644319023256,14.39242313,114.19,114.12,0.25]
[1644319023756,14.39242313,114.19,114.11,23.7146]
[1644319024856,14.39242313,114.19,114.11,36.8578]
[1644319025060,1.25032313,114.19,114.12,2.02422179]
[1644319025257,1.25032313,114.19,114.12,2.27422179]
[1644319025458,1.25032313,114.19,114.12,8.27422179]
[1644319025860,1.25032313,114.19,114.13,13.1406]
[1644319026259,1.25032313,114.19,114.13,13.3906]
[1644319026460,1.25032313,114.2,114.13,9.03793539]
[1644319027061,1.25032313,114.2,114.13,33.05543539]
[1644319027860,14.39122313,114.2,114.13,24.2675]
[1644319028665,14.39122313,114.2,114.11,24.3842]
[1644319028887,13.1438,114.18,114.11,24.3842]
[1644319029284,14.39412313,114.18,114.11,24.3842]
[1644319029984,14.39412313,114.18,114.11,26.40842179]
[1644319030185,14.39412313,114.18,114.11,24.3842]
[1644319030783,14.39412313,114.18,114.11,37.5276]
[1644319031387,14.39412313,114.18,114.08,23.6249]
[1644319031584,13.1469,114.15,114.08,52.4689]
[1644319032084,13.1469,114.15,114.08,65.6157]
[1644319032687,13.1469,114.15,114.08,65.8657]
[1644319033084,13.1469,114.15,114.08,67.88992179]
[1644319033687,13.1449,114.16,114.08,67.63992179]
[1644319034287,14.39522313,114.16,114.08,67.63992179]
[1644319034487,0.02878168,114.17,114.08,67.63992179]
[1644319034687,39.25170481,114.18,114.08,67.63992179]
[1644319034888,39.25170481,114.18,114.08,80.35992179]
[1644319035089,39.25170481,114.18,114.08,80.60992179]
[1644319036488,38.00138168,114.18,114.08,95.09235089]
[1644319037087,13.17158168,114.18,114.08,95.09235089]
[1644319037589,13.17158168,114.18,114.08,94.84235089]
[1644319037792,14.42190481,114.18,114.08,94.84235089]
[1644319038189,0.02878168,114.18,114.08,94.84235089]
[1644319038390,1.25032313,114.19,114.08,94.84235089]
[1644319038589,0.02878168,114.18,114.08,96.08190764]
[1644319038791,0.02878168,114.18,114.08,94.84235089]
[1644319039091,1.25032313,114.19,114.12,13.1414]
[1644319039293,0.02878168,114.18,114.12,13.3914]
[1644319039494,14.39172313,114.2,114.13,2.02422179]
[1644319039695,14.39172313,114.2,114.13,2.27422179]
[1644319039895,14.39172313,114.2,114.13,0.25]
[1644319040194,14.39172313,114.2,114.11,30.4904]
[1644319040396,1.25032313,114.19,114.11,30.7404]
[1644319040593,14.39182313,114.19,114.13,13.1403]
[1644319040795,13.1415,114.19,114.13,13.3903]
[1644319045703,13.1415,114.19,114.12,13.1422]
[1644319045907,14.39182313,114.19,114.12,13.1422]
[1644319046106,14.39182313,114.19,114.12,13.3922]
[1644319046505,14.39182313,114.19,114.09,2.02219817]
[1644319046704,0.02878168,114.19,114.13,15.16239817]
[1644319046904,4.38,114.2,114.14,12.72]
[1644319047105,1.27910481,114.22,114.13,0.25]
[1644319047606,14.38992313,114.22,114.13,0.25]
[1644319047905,1.25032313,114.21,114.13,0.25]
[1644319048105,1.25032313,114.21,114.11,2.27219817]
[1644319048305,1.27910481,114.21,114.11,0.25]
[1644319048504,25.26680481,114.21,114.11,0.25]
[1644319048712,25.26680481,114.21,114.1,24.3034]
[1644319049105,25.26680481,114.21,114.1,32.32559817]
[1644319049706,38.40770481,114.21,114.1,45.46849817]
[1644319050106,38.40770481,114.21,114.1,39.46849817]
[1644319050410,1.25032313,114.2,114.1,39.46849817]
[1644319051812,13.143,114.19,114.1,39.46849817]
[1644319052012,13.143,114.19,114.1,39.21849817]
[1644319052811,13.143,114.19,114.1,24.0534]
[1644319053011,14.39332313,114.19,114.1,24.0534]
[1644319053214,14.39332313,114.19,114.1,24.3034]
[1644319053815,14.39332313,114.19,114.1,24.0534]
[1644319054416,13.143,114.19,114.11,2.02219973]
[1644319054815,13.143,114.19,114.1,24.0534]
[1644319055018,13.143,114.19,114.1,24.3034]
[1644319055226,14.39332313,114.19,114.11,2.02219973]
[1644319055516,1.25032313,114.2,114.11,2.02219973]
[1644319055715,38.40770481,114.21,114.11,8.27219973]
[1644319056215,1.25032313,114.2,114.11,8.27219973]
[1644319056424,38.40770481,114.21,114.12,23.8525]
[1644319056617,38.40770481,114.21,114.13,13.1401]
[1644319056817,38.37892313,114.21,114.13,13.3901]
[1644319057216,38.37892313,114.21,114.13,15.41229973]
[1644319059118,25.23802313,114.21,114.13,15.41229973]
[1644319059319,1.27910481,114.22,114.13,21.41229973]
[1644319059517,0.02878168,114.22,114.14,22.8658]
[1644319059717,1.27910481,114.23,114.15,13.1374]
[1644319059917,46.59810481,114.24,114.15,15.15959973]
[1644319060118,46.59810481,114.24,114.16,2.02219973]
[1644319060317,59.70742313,114.24,114.16,0.25]
[1644319060520,1.25032313,114.23,114.16,6.25]
[1644319061118,59.70742313,114.24,114.16,0.25]
[1644319061319,59.70742313,114.24,114.16,6.25]
[1644319061519,1.25032313,114.23,114.16,6.0]
[1644319061723,1.25032313,114.23,114.16,13.1367]
[1644319064721,1.25032313,114.23,114.16,13.3867]
[1644319065121,1.25032313,114.23,114.16,13.1367]
[1644319065320,1.25032313,114.23,114.15,13.138]
[1644319065522,14.38842313,114.23,114.15,13.138]
[1644319065721,14.38842313,114.23,114.15,13.388]
[1644319066022,1.25032313,114.22,114.15,13.388]
[1644319066221,1.25032313,114.22,114.15,13.138]
[1644319067624,1.25032313,114.22,114.15,13.388]
[1644319068224,1.25032313,114.22,114.15,13.138]
[1644319068625,14.38952313,114.22,114.14,38.02719973]
[1644319068825,1.25032313,114.21,114.14,15.16139973]
[1644319069025,1.25032313,114.21,114.12,23.6393]
[1644319069629,1.25032313,114.2,114.12,23.6393]
[1644319069926,14.39262313,114.2,114.12,23.6393]
[1644319070150,14.39262313,114.2,114.12,23.8893]
[1644319073134,14.39262313,114.2,114.12,23.6393]
[1644319073938,13.1423,114.2,114.12,36.7809]
[1644319074135,13.1423,114.2,114.12,44.79811055]
[1644319074536,14.39052313,114.21,114.12,39.04811055]
[1644319074740,1.25032313,114.21,114.12,38.79811055]
[1644319074936,1.25032313,114.2,114.12,38.79811055]
[1644319075636,1.25032313,114.2,114.12,44.79811055]
[1644319075836,14.39162313,114.2,114.12,38.79811055]
[1644319079353,14.39162313,114.2,114.12,39.04811055]
[1644319079752,14.39162313,114.2,114.12,37.0309]
[1644319086959,14.39162313,114.2,114.12,43.0309]
[1644319087160,14.39162313,114.2,114.12,37.0309]
[1644319090462,1.25032313,114.2,114.12,43.0309]
[1644319090663,1.25032313,114.21,114.13,25.09091055]
[1644319090862,1.25032313,114.21,114.15,13.1367]
[1644319091063,1.27910481,114.22,114.15,13.1367]
[1644319091263,1.25032313,114.22,114.15,21.40391055]
[1644319091461,1.25032313,114.23,114.15,21.40391055]
[1644319091662,1.25032313,114.23,114.16,24.4781]
[1644319091961,1.25032313,114.23,114.16,32.8281]
[1644319092163,1.25032313,114.24,114.16,39.0781]
[1644319092462,1.25032313,114.24,114.16,41.09531055]
[1644319092661,1.25032313,114.24,114.18,13.1346]
[1644319093063,1.25032313,114.24,114.18,13.3846]
[1644319093764,25.76922313,114.25,114.18,13.3846]
[1644319093963,1.25032313,114.25,114.18,13.3846]
[1644319094164,1.25032313,114.25,114.18,19.3846]
[1644319094665,1.25032313,114.25,114.2,13.1325]
[1644319094865,1.25032313,114.25,114.2,23.4275]
[1644319095066,13.1324,114.27,114.2,23.4275]
[1644319095067,1.25032313,114.26,114.2,23.4275]
[1644319097970,14.38272313,114.27,114.2,23.4275]
[1644319098167,1.25032313,114.26,114.2,23.4275]
[1644319098569,14.38272313,114.27,114.2,23.6775]
[1644319099169,1.25032313,114.27,114.2,23.6775]
[1644319099771,38.03382313,114.28,114.2,23.6775]
[1644319100069,24.90252313,114.28,114.2,29.6775]
[1644319100668,23.6522,114.28,114.2,29.6775]
[1644319103282,23.50878827,114.28,114.2,29.6775]
[1644319105779,23.50878827,114.28,114.2,31.69471055]
[1644319106778,36.64008827,114.28,114.2,31.69471055]
[1644319106977,36.64008827,114.28,114.2,13.3825]
[1644319107577,36.66886995,114.28,114.2,13.1325]
[1644319108078,37.91919308,114.28,114.2,13.1325]
[1644319108278,37.8904114,114.28,114.2,13.1325]
[1644319110380,37.8904114,114.28,114.17,41.136]
[1644319110381,2.10775549,114.27,114.17,41.136]
[1644319110581,13.1363,114.24,114.15,66.7863]
[1644319110779,13.1363,114.24,114.15,23.0029]
[1644319110985,0.02878168,114.23,114.15,23.0029]
[1644319111402,0.02878168,114.23,114.16,13.1376]
[1644319111582,22.89028168,114.25,114.16,13.1376]
[1644319112380,24.14060481,114.25,114.16,13.1376]
[1644319112582,24.11182313,114.25,114.16,13.1376]
[1644319112782,24.11182313,114.25,114.15,23.0029]
[1644319112783,13.1379,114.22,114.15,36.1419]
[1644319113080,13.1379,114.22,114.15,36.3919]
[1644319113882,13.1379,114.22,114.15,23.0029]
[1644319114085,21.2429,114.22,114.12,12.72]
[1644319114282,0.02878168,114.21,114.13,6.0]
[1644319114482,13.1424,114.19,114.11,29.3521]
[1644319115783,13.1424,114.19,114.11,42.4951]
[1644319116784,13.1424,114.19,114.11,42.7451]
[1644319117781,13.1424,114.19,114.11,42.4951]
[1644319118689,13.1424,114.19,114.11,42.7451]
[1644319119083,13.1424,114.19,114.11,44.76231055]
[1644319124190,0.02878168,114.2,114.12,12.72]
[1644319124391,0.02878168,114.22,114.14,13.1375]
[1644319124592,22.71,114.23,114.15,24.9367]
[1644319124793,0.02878168,114.22,114.15,27.20390145]
[1644319124993,22.71,114.23,114.16,2.01720145]
[1644319125192,22.71,114.23,114.16,8.26720145]
[1644319125392,35.87508168,114.23,114.16,19.3875]
[1644319125592,35.8463,114.23,114.16,19.3875]
[1644319125994,35.8463,114.23,114.16,13.3875]
[1644319126293,34.8463,114.23,114.16,13.3875]
[1644319126515,34.8463,114.23,114.16,19.3875]
[1644319129118,34.8463,114.23,114.16,13.3875]
[1644319129614,34.8463,114.23,114.16,19.3875]
[1644319130516,34.8463,114.23,114.16,13.3875]
[1644319131115,34.8463,114.23,114.16,0.25]
[1644319131314,34.8463,114.23,114.15,38.3253]
[1644319132316,34.8463,114.23,114.15,25.1867]
[1644319133318,34.8463,114.23,114.15,38.3252]
[1644319133724,34.8463,114.23,114.15,24.9367]
[1644319134720,36.09662313,114.23,114.15,24.9367]
[1644319135620,34.8463,114.23,114.15,24.9367]
[1644319136119,36.09662313,114.23,114.15,24.9367]
[1644319137621,1.25032313,114.22,114.15,24.9367]
[1644319137822,13.1403,114.2,114.15,24.9367]
[1644319139429,13.1403,114.2,114.15,38.0755]
[1644319139723,13.1385,114.21,114.15,38.3255]
[1644319141026,13.1385,114.21,114.15,38.0755]
[1644319144233,13.1385,114.21,114.15,38.3255]
[1644319144437,13.1385,114.21,114.15,24.9367]
[1644319144835,14.38882313,114.21,114.15,24.9367]
[1644319145037,14.38882313,114.21,114.13,23.3765]
[1644319145840,14.38882313,114.21,114.13,23.6265]
[1644319146037,13.1385,114.21,114.13,29.6265]
[1644319146448,13.1385,114.21,114.13,23.6265]
[1644319146838,13.1385,114.21,114.13,36.7678]
[1644319147639,13.1385,114.21,114.13,42.7678]
[1644319147839,13.1385,114.21,114.13,36.7678]
[1644319148542,13.1385,114.21,114.14,23.0789]
[1644319148740,14.38882313,114.21,114.14,36.4687]
[1644319148941,14.38882313,114.21,114.14,36.2187]
[1644319149241,13.1385,114.21,114.14,36.2187]
[1644319150043,13.1385,114.21,114.14,47.6177]
[1644319150441,1.27910481,114.22,114.16,13.1372]
[1644319150442,13.16598168,114.22,114.16,13.1372]
[1644319150642,13.1372,114.22,114.16,13.1372]
[1644319150844,13.1372,114.22,114.16,13.3872]